[Event "FIDE Grand Swiss 2023"]
[Site "Villa Marina, Douglas, Isle of Man, Isle Of Man"]
[Date "2023.10.28"]
[Round "4.38"]
[White "Rodrigue-Lemieux, Shawn"]
[Black "Pichot, Alan"]
[Result "1/2-1/2"]
[TimeControl "40/90 + 30 + 30s/move"]
[WhiteFideId "2620049"]
[BlackFideId "110973"]
[WhiteElo "2488"]
[BlackElo "2650"]

1. e4 {[%clk 01:40:57]} {[%emt 00:00:02]} c5 {[%clk 01:40:49]} {[%emt
00:00:11]} 2. Nf3 {[%clk 01:41:19]} {[%emt 00:00:08]} d6 {[%clk 01:41:07]}
{[%emt 00:00:13]} 3. Bb5+ {[%clk 01:41:37]} {[%emt 00:00:11]} Nd7 {[%clk
01:41:25]} {[%emt 00:00:11]} 4. Ba4 {[%clk 01:41:52]} {[%emt 00:00:16]} Ngf6
{[%clk 01:41:36]} {[%emt 00:00:19]} 5. O-O {[%clk 01:42:09]} {[%emt 00:00:12]}
e6 {[%clk 01:41:33]} {[%emt 00:00:34]} 6. Re1 {[%clk 01:42:11]} {[%emt
00:00:28]} Be7 {[%clk 01:41:34]} {[%emt 00:00:28]} 7. c3 {[%clk 01:41:08]}
{[%emt 00:01:32]} a6 {[%clk 01:41:06]} {[%emt 00:00:59]} 8. d4 {[%clk
01:41:16]} {[%emt 00:00:23]} b5 {[%clk 01:40:39]} {[%emt 00:00:57]} 9. Bc2
{[%clk 01:41:32]} {[%emt 00:00:13]} Bb7 {[%clk 01:40:45]} {[%emt 00:00:24]} 10.
Nbd2 {[%clk 01:38:53]} {[%emt 00:03:09]} O-O {[%clk 01:39:21]} {[%emt
00:01:55]} 11. e5 {[%clk 01:27:07]} {[%emt 00:12:15]} dxe5 {[%clk 01:38:29]}
{[%emt 00:01:23]} 12. dxe5 {[%clk 01:27:29]} {[%emt 00:00:08]} Nd5 {[%clk
01:38:43]} {[%emt 00:00:16]} 13. Ne4 {[%clk 01:18:58]} {[%emt 00:09:01]} Qc7
{[%clk 01:36:38]} {[%emt 00:02:35]} 14. Neg5 {[%clk 01:00:45]} {[%emt
00:18:43]} g6 {[%clk 01:35:26]} {[%emt 00:01:42]} 15. Qd2 {[%clk 00:50:09]}
{[%emt 00:11:05]} Rfd8 {[%clk 00:42:11]} {[%emt 00:53:45]} 16. Nxh7 {[%clk
00:49:28]} {[%emt 00:01:12]} Kxh7 {[%clk 00:40:16]} {[%emt 00:02:25]} 17. Bxg6+
{[%clk 00:45:07]} {[%emt 00:04:51]} Kg8 {[%clk 00:39:47]} {[%emt 00:00:59]} 18.
Qh6 {[%clk 00:22:19]} {[%emt 00:23:18]} Nf8 {[%clk 00:39:58]} {[%emt 00:00:20]}
19. Bc2 {[%clk 00:21:30]} {[%emt 00:01:18]} f5 {[%clk 00:39:54]} {[%emt
00:00:33]} 20. g4 {[%clk 00:20:27]} {[%emt 00:01:33]} Qc6 {[%clk 00:32:49]}
{[%emt 00:07:36]} 21. gxf5 {[%clk 00:14:41]} {[%emt 00:06:15]} exf5 {[%clk
00:32:59]} {[%emt 00:00:21]} 22. Bxf5 {[%clk 00:12:42]} {[%emt 00:02:28]} Nc7
{[%clk 00:13:16]} {[%emt 00:20:12]} 23. Qxc6 {[%clk 00:11:16]} {[%emt
00:01:58]} Bxc6 {[%clk 00:13:40]} {[%emt 00:00:06]} 24. Ng5 {[%clk 00:11:42]}
{[%emt 00:00:03]} Rd5 {[%clk 00:06:50]} {[%emt 00:07:21]} 25. Be4 {[%clk
00:10:55]} {[%emt 00:01:16]} Nfe6 {[%clk 00:07:00]} {[%emt 00:00:21]} 26. Bxd5
{[%clk 00:08:29]} {[%emt 00:02:56]} Bxd5 {[%clk 00:07:21]} {[%emt 00:00:09]} 27.
h4 {[%clk 00:07:44]} {[%emt 00:01:14]} Kg7 {[%clk 00:07:05]} {[%emt 00:00:46]}
28. Kh2 {[%clk 00:06:22]} {[%emt 00:01:52]} Rf8 {[%clk 00:06:23]} {[%emt
00:01:13]} 29. Be3 {[%clk 00:05:42]} {[%emt 00:01:09]} Nxg5 {[%clk 00:05:38]}
{[%emt 00:01:16]} 30. hxg5 {[%clk 00:06:04]} {[%emt 00:00:07]} Ne6 {[%clk
00:05:18]} {[%emt 00:00:51]} 31. Rad1 {[%clk 00:06:13]} {[%emt 00:00:20]} Bc6
{[%clk 00:05:30]} {[%emt 00:00:18]} 32. Kg3 {[%clk 00:02:27]} {[%emt 00:04:17]}
Kg6 {[%clk 00:04:42]} {[%emt 00:01:18]} 33. f4 {[%clk 00:02:24]} {[%emt
00:00:32]} Rh8 {[%clk 00:04:48]} {[%emt 00:00:24]} 34. Bf2 {[%clk 00:01:32]}
{[%emt 00:01:23]} Kf5 {[%clk 00:03:49]} {[%emt 00:01:29]} 35. Be3 {[%clk
00:01:19]} {[%emt 00:00:43]} Kg6 {[%clk 00:01:32]} {[%emt 00:02:47]} 36. Rd2
{[%clk 00:01:01]} {[%emt 00:00:48]} Ng7 {[%clk 00:01:40]} {[%emt 00:00:22]} 37.
Bf2 {[%clk 00:00:38]} {[%emt 00:00:53]} Nf5+ {[%clk 00:00:57]} {[%emt
00:01:13]} 38. Kg4 {[%clk 00:01:07]} Rh2 {[%clk 00:00:38]} {[%emt 00:00:49]} 39.
e6 {[%clk 00:00:57]} {[%emt 00:00:40]} c4 {[%clk 00:00:32]} {[%emt 00:00:37]}
40. Re5 {[%clk 00:00:50]} {[%emt 00:00:36]} Rg2+ {[%clk 00:00:35]} {[%emt
00:00:27]} 41. Kh3 {[%clk 00:01:15]} {[%emt 00:00:05]} Bf3 {[%clk 00:40:36]}
{[%emt 00:10:28]} 42. b3 {[%clk 00:41:25]} {[%emt 00:10:20]} b4 {[%clk
00:22:12]} {[%emt 00:18:54]} 43. Be1 {[%clk 00:31:27]} {[%emt 00:10:28]} Rg1
{[%clk 00:19:31]} {[%emt 00:03:12]} 44. Rf2 {[%clk 00:30:18]} {[%emt 00:01:37]}
Bc6 {[%clk 00:16:43]} {[%emt 00:03:19]} 45. cxb4 {[%clk 00:26:56]} {[%emt
00:03:52]} c3 {[%clk 00:16:51]} {[%emt 00:00:23]} 46. Rc2 {[%clk 00:25:01]}
{[%emt 00:02:25]} Rh1+ {[%clk 00:09:41]} {[%emt 00:07:40]} 47. Kg4 {[%clk
00:25:28]} {[%emt 00:00:02]} Rg1+ {[%clk 00:09:11]} {[%emt 00:01:01]} 48. Kh3
{[%clk 00:25:56]} {[%emt 00:00:01]} Bd6 {[%clk 00:02:24]} {[%emt 00:07:17]} 49.
Rxc3 {[%clk 00:21:47]} {[%emt 00:04:39]} Rh1+ {[%clk 00:02:24]} {[%emt
00:00:31]} 50. Kg4 {[%clk 00:22:15]} {[%emt 00:00:01]} Rg1+ {[%clk 00:02:39]}
{[%emt 00:00:16]} 51. Kh3 {[%clk 00:22:24]} {[%emt 00:00:20]} Rh1+ {[%clk
00:02:33]} {[%emt 00:00:37]} 52. Kg4 {[%clk 00:22:48]} {[%emt 00:00:05]} Rg1+
{[%clk 00:02:30]} {[%emt 00:00:33]} 1/2-1/2